Cogmind - Beta 10.2 @@@ ROGUE MODE // 2021.12.07 @ 15:31:12 Player: Triffids Result: Destroyed by D-53 Grenadier with Mini Grenade Launcher Performance ------------- Evolutions (0) 0 Regions Visited (2) 400 Robots Destroyed (5) 25 Value Destroyed (89) 89 Prototype IDs (2) 40 Alien Tech Used (0) 0 Bonus (-11) -11 TOTAL SCORE: 543 Bonus ------- Friendly Fire -11 Cogmind --------- Core Integrity 0/250 Matter 299/300 Energy 250/250 System Corruption 0% Temperature Cool (0) Movement Walking (150) Ox1 Location -10/Mines Parts ------- > --- POWER (1) -------- Ion Engine > --- PROPULSION (2) --- Aluminum Leg > --- UTILITY (2) ------ Medium Storage Unit > --- WEAPON (2) ------- Assault Rifle > --- INVENTORY (8) ---- Ion Engine Improved Heat Sink Large Battery (300) High-capacity Matter Pod (57) Beam Cannon Assault Rifle Light Cannon Rocket Launcher Peak State ------------ > --- POWER ------------ Ion Engine > --- PROPULSION ------- Aluminum Leg Aluminum Leg > --- UTILITY ---------- Medium Storage Unit Sensor Array > --- WEAPON ----------- EM Pulse Gun Assault Rifle > --- INVENTORY -------- Light Ion Engine Improved Heat Sink Large Battery High-capacity Matter Pod Beam Cannon Assault Rifle Light Cannon Grenade Launcher [Rating: 8] Favorites ----------- Power Ion Engine Engine Ion Engine Propulsion Aluminum Leg Leg Aluminum Leg Utility Medium Storage Unit Device Sensor Array Storage Medium Storage Unit Weapon EM Pulse Gun Energy Gun EM Pulse Gun Ballistic Gun Assault Rifle Launcher Grenade Launcher Build | -11 -10 -10 ------- Run | Scr Mat Min Slots Evolved . | . . . Power . | . . . Propulsion . | . . . Utility . | . . . Weapon . | . . . Parts Attached 11 | 6 3 2 Power 1 | 1 . . Engine 1 | 1 . . Core . | . . . Reactor . | . . . Propulsion 2 | 2 . . Treads . | . . . Leg 2 | 2 . . Wheel . | . . . Hover . | . . . Flight . | . . . Utility 4 | 1 3 . Device 2 | . 2 . Storage 2 | 1 1 . Processor . | . . . Hackware . | . . . Protection . | . . . Artifact . | . . . Weapon 4 | 2 . 2 Energy Gun 1 | 1 . . Energy Cannon . | . . . Ballistic Gun 2 | 1 . 1 Ballistic Cannon . | . . . Launcher 1 | . . 1 Special Weapon . | . . . Impact Weapon . | . . . Slashing Weapon . | . . . Piercing Weapon . | . . . Special Melee Weapon . | . . . Unidentified Prototypes . | . . . Parts Lost 3 | . . 3 Power . | . . . Propulsion 1 | . . 1 Utility 1 | . . 1 Weapon 1 | . . 1 Highest Loss Streak 3 | . . 3 Average Slot Usage (%) 99 | . 99 99 Engine 14 | . 14 14 Leg 27 | . 28 27 Device 13 | . 13 13 Storage 14 | . 14 14 Energy Gun 13 | . 14 13 Ballistic Gun 8 | . 14 3 Launcher 5 | . . 10 Naked Turns . | . . . Heaviest Build 19 | 13 18 19 Greatest Support 20 | 20 20 20 Greatest Overweight (x) 2 | 2 . 1 Average Overweight (x) . | . . . Largest Inventory Capacity 8 | 6 8 8 Average Capacity 7 | 5 7 8 Most Carried 8 | 4 8 8 Average Carried 6 | 1 6 8 Final Capacity 8 | 6 8 8 Final Carried 8 | 2 8 8 Class Distribution -------------------- 100% | Mutant Dominant Class ---------------- Mutant | -10/Materials Mutant | -10/Mines Resources | -11 -10 -10 ----------- Run | Scr Mat Min Matter Collected 399 | 217 103 79 Remotely . | . . . Salvage Created 121 | . 103 18 Parts 11 | . 6 5 Haulers Intercepted 1 | . 1 . Recyclers Shooed 1 | . . 1 Parts Field Recycled . | . . . Retrieved Matter . | . . . Parts Self-Destructed . | . . . Prevented . | . . . Kills | -11 -10 -10 ------- Run | Scr Mat Min Combat Hostiles Destroyed 4 | . 1 3 Guns 3 | . 1 2 AOE 1 | . . 1 Classes Destroyed 3 | . 2 1 Hauler 1 | . 1 . Swarmer 3 | . . 3 Grunt 1 | . 1 . Best Kill Streak 3 | . 1 3 Combat Bots Only 3 | . 1 3 Max Kills in Single Turn 1 | . 1 1 Gunslinging . | . . . Exploded 1 | . . 1 Melee . | . . . Uniques/NPCs Destroyed . | . . . Combat | -11 -10 -10 -------- Run | Scr Mat Min Damage Taken 556 | . 52 504 Core 252 | . . 252 Absorbed by Shields . | . . . Core Remaining (%) 100 | 100 . . Volleys Fired 9 | . 4 5 Largest 2 | . 2 2 Hottest 70 | . 60 70 Shots Fired 18 | . 8 10 Gun 15 | . 8 7 Cannon . | . . . Launcher 3 | . . 3 Special . | . . . Kinetic 6 | . 4 2 Thermal . | . . . Explosive 3 | . . 3 Electromagnetic 9 | . 4 5 Robot Hit Streak 6 | . 3 6 Robot Miss Streak 2 | . 2 2 Penetration Max . | . . . Secondary Targets . | . . . Shots Hit Robots 10 | . 5 5 Core Hits 8 | . 4 4 Critical Hits . | . . . Critical Kills . | . . . Critical Parts Destroyed . | . . . Melee Attacks . | . . . Impact . | . . . Slashing . | . . . Piercing . | . . . Sneak Attacks . | . . . Combat Hostiles . | . . . Follow-up Attacks . | . . . Damage Inflicted 367 | . 70 297 Guns 116 | . 70 46 Cannons . | . . . Explosions 251 | . . 251 Melee . | . . . Ramming . | . . . Kinetic 41 | . 30 11 Thermal . | . . . Explosive 251 | . . 251 Electromagnetic 75 | . 40 35 Impact . | . . . Slashing . | . . . Piercing . | . . . Highest Corruption . | . . . Average Corruption . | . . . Corruption Purged . | . . . Overload Shots . | . . . Overflow Damage 22 | . . 22 Projectiles . | . . . Explosions 22 | . . 22 Melee . | . . . Knockbacks . | . . . Impact . | . . . Kinetic . | . . . Secondary . | . . . Self-Inflicted Damage . | . . . Shots . | . . . Rammed . | . . . Targets Rammed . | . . . Kicked . | . . . Crushed . | . . . Highest Temperature 27 | . 18 27 Average Temperature 14 | . 15 14 Received Heat Transfer 30 | . 30 . Siege Activations . | . . . Robots Corrupted . | . . . Combat Hostiles . | . . . Parts Fried . | . . . Impact Corruptions . | . . . Robots Melted . | . . . Combat Hostiles . | . . . Parts Melted . | . . . Heat Transferred . | . . . Parts Sabotaged . | . . . Parts Stolen . | . . . Parts Stripped . | . . . Power Chain Reactions . | . . . Missiles Intercepted . | . . . Alert | -11 -10 -10 ------- Run | Scr Mat Min Peak Influence 90 | . 88 90 Initial 5 | . . 5 Average 41 | . 14 77 Maximum Alert Level . | . . . Low Security (%) 100 | 100 100 100 Level 1 . | . . . Level 2 . | . . . Level 3 . | . . . Level 4 . | . . . Level 5 . | . . . High Security . | . . . Max Security . | . . . Squads Dispatched . | . . . Investigation . | . . . Extermination . | . . . Reinforcement . | . . . Assault . | . . . Garrison . | . . . Intercept . | . . . Construction Impeded . | . . . Haulers Reinforced . | . . . Stealth | -11 -10 -10 --------- Run | Scr Mat Min Distress Signals . | . . . Communications Jammed . | . . . Distress Signals . | . . . Times Spotted 20 | . 6 14 Peak Tracking Total 7 | . 3 7 Tactical Retreats 1 | . 1 . Traps | -11 -10 -10 ------- Run | Scr Mat Min Traps Triggered . | . . . Indirectly . | . . . Trap Hack Attempts . | . . . Triggered . | . . . Disarmed . | . . . Reprogrammed . | . . . Reused . | . . . Traps Extracted . | . . . Installed . | . . . Triggered . | . . . Machines | -11 -10 -10 ---------- Run | Scr Mat Min Machines Disabled 1 | . . 1 Max in Single Turn 1 | . . 1 Machines Sabotaged . | . . . Garrisons Compromised . | . . . Overloaded Fab Kills . | . . . Fab Network Shutdowns . | . . . Hacking | -11 -10 -10 --------- Run | Scr Mat Min Machines Accessed 5 | . 4 1 Terminals 5 | . 4 1 Fabricators . | . . . Repair Stations . | . . . Recycling Units . | . . . Scanalyzers . | . . . Garrison Access . | . . . Total Hacks 19 | . 18 1 Successful 9 | . 8 1 Failed 10 | . 10 . Catastrophic 2 | . 2 . Database Lockouts . | . . . Manual 11 | . 9 2 Terminals 19 | . 18 1 Fabricators . | . . . Repair Stations . | . . . Recycling Units . | . . . Scanalyzers . | . . . Garrison Access . | . . . Terminal Hacks 8 | . 7 1 Record 3 | . 3 . Prototype ID Bank 1 | . 1 . Branch Access Points 1 | . 1 . Emergency Access Points 1 | . 1 . Zone Layout 2 | . 1 1 Fabricator Hacks . | . . . Repair Station Hacks . | . . . Recycling Unit Hacks . | . . . Scanalyzer . | . . . Garrison Access Hacks . | . . . Unauthorized Hacks 1 | . 1 . Terminals 1 | . 1 . Track 1 | . 1 . Fabricators . | . . . Repair Stations . | . . . Recycling Units . | . . . Scanalyzers . | . . . Garrison Access . | . . . Data Cores Recovered . | . . . Used . | . . . Hacking Detections 5 | . 4 1 Full Trace Events . | . . . Feedback Events . | . . . Feedback Blocked . | . . . Robot Schematics Acquired . | . . . Robots Built . | . . . Matter . | . . . Time . | . . . Total Robot Build Rating . | . . . Part Schematics Acquired . | . . . Parts Built . | . . . Matter . | . . . Time . | . . . Total Part Build Rating . | . . . Parts Repaired . | . . . Time . | . . . Parts Recycled . | . . . Recycled Matter . | . . . Retrieved Matter . | . . . Retrieved Components . | . . . Parts Scanalyzed . | . . . Part Schematics Acquired . | . . . Parts Damaged . | . . . Bothacking | -11 -10 -10 ------------ Run | Scr Mat Min Used RIF Installer . | . . . Robots Hacked . | . . . Non-combat . | . . . Combat . | . . . Robot Hacks Applied . | . . . Relay Couplers Released . | . . . Robots Rewired . | . . . Allies Hacked . | . . . Hacks Repelled . | . . . Allies | -11 -10 -10 -------- Run | Scr Mat Min Total Allies . | . . . Largest Group . | . . . Highest-Rated Group . | . . . Highest-Rated Ally . | . . . Total Orders . | . . . Ally Attacks . | . . . Total Damage . | . . . Kills . | . . . Allies Corrupted . | . . . Allies Melted . | . . . Intel | -11 -10 -10 ------- Run | Scr Mat Min Robot Analysis Total . | . . . Derelict Logs Recovered . | . . . Drone Launches . | . . . Drone Recoveries . | . . . Exploration | -11 -10 -10 ------------- Run | Scr Mat Min Turns Passed 999 | 67 497 435 Spaces Moved 754 | 43 374 337 Core 6 | 6 . . Treads . | . . . Legs 748 | 37 374 337 Wheels . | . . . Hover . | . . . Flight . | . . . Fastest Speed 50 | 50 120 120 Average Speed 120 | 120 120 120 Slowest Speed 150 | 150 120 150 Overloaded Moves . | . . . Propulsion Burnouts . | . . . Robots Hopped . | . . . Cave-ins Triggered . | . . . Exploration Rate (%) 40 | 4 46 72 Regions Visited 2 Branch Regions 1 Pre-discovered Areas . | . . . Known Exits Taken 1 | . 1 . Unknown Exits Taken 1 | 1 . . Scrap Searched 2 | . . 2 Spaces Dug . | . . . Terrain Destroyed 16 | . . 16 Melee . | . . . Projectile . | . . . AOE 16 | . . 16 Terrain Rammed . | . . . Walls Destroyed . | . . . Machines Disabled . | . . . Actions | -11 -10 -10 --------- Run | Scr Mat Min Total 829 | 56 416 357 Wait 33 | 4 18 11 Move 752 | 42 373 337 Hop . | . . . Pick Up 16 | 4 11 1 Fast Attach 6 | 4 2 . Attach 2 | 2 . . Detach . | . . . Swap 3 | . 1 2 Drop 8 | . 7 1 Fire 9 | . 4 5 Melee . | . . . Ram . | . . . Kick . | . . . Crush . | . . . Escape Stasis . | . . . Rewire . | . . . Trap . | . . . Miscellaneous . | . . . Route ------- -11/Scrapyard -10/Materials (discovered 3 exits: [*Mat x2] / *Min) -10/Mines (discovered 2 exits: [*Mat x2]) History --------- Turn | Location | Event 9 | -11/Scrapyard | Discovered new exit (range 15) 68 | -11/Scrapyard | Entered Materials 313 | -10/Materials | Build established: Mutant 331 | -10/Materials | Discovered new exit (range 12) 419 | -10/Materials | Identified exit to Mines 545 | -10/Materials | Discovered new exit (range 15) 565 | -10/Materials | Entered Mines 593 | -10/Mines | Discovered new exit (range 13) 781 | -10/Mines | Discovered new exit (range 6) 916 | -10/Mines | Received a Rocket Launcher from a helpful Derelict 963 | -10/Mines | Assembled infested the area 968 | -10/Mines | Assisted by a Guerilla fighting off Assembled 995 | -10/Mines | Core integrity fell below 50% 999 | -10/Mines | Core integrity fell below 20% 1000 | -10/Mines | Destroyed by D-53 Grenadier with Mini Grenade Launcher Last Messages --------------- 00975_ HV Slug penetrates Wall. 00975_ HV Slug penetrates as-01296. 00975_ as-01296 suffers critical hit. 00977_ HV Slug penetrates as-01296. 00981_ as-01296 suffers critical hit. 00981_ as-01296 destroyed. 00985_ NW-W8T(h) destroyed. 00985_ as-44089 destroyed. 00985_ as-59693 destroyed. 00985_ as-70356 destroyed. 00988_ as-06189 destroyed. 00988_ as-97914 destroyed. 00989_ A derelict is hurriedly installing traps. 00990_ as-48058 destroyed. 00994_ T-07 Excavator destroyed. 00994_ EM Pulse Gun destroyed. 00994_ Sensor Array destroyed. 00995_ The unstable cave ceiling collapses. 00996_ Aluminum Leg destroyed. 00997_ The unstable cave ceiling collapses. Map ----- +----------------------------------------------------+ | ?????????????????????????????????# | | ??????????????????????????????????# | | ???????????????????????????????##### | | ???????????????????????????????# | | ???????????????????????????????# | | ??????#????????##??????????????# ## | | ???# ?^?????## #??????????????# #? | | ???# =%#????# #??????????????# #? | | ???#^ !# ????# ##?????????????# #? | | ?### ???## ##????????????# #? | | ?#" #### #????????????# #? | | ?#" ## #??###???????# ## | | ??# ## #?## ###???## | | ??# #?# ##??# | | ??# #??? ##?# | | ???# = #????# ### | | ???# #?????# ### | | ???# # dd####### ##### | | ??## # " #??## | | ??# "%" #???# | | ???# # ###### #???? | | ???## # #????## ##???? | | ???# #?????# ##???? | | ???# #????## ###?? | | ???## ###??## ##? | | ???# @ #?## ## | | ??# ##r### ### # | | ?# ## ##?## | | ?# ### ####### ##???## | | ?# ??#### #?????####????## | | ?## ????## #????????###### | | ??## ????## ##???????# | | ???###????# #???????# ### ### | | ??????????# #???????# #?## #### | | ??????????# ######### #?### ## # | | ??????????## #?### # ## | | ???????????## #####?# | | ????????????####### #?????# | | ????????????####### ###???## | | ????????????# #???## """ | | ????????????# #????# """ | | ????????????# """ #????# < | | ????????????# """ #????# | | ????????????# """ #????# | | ????????????# #????###T#### | | ????????????############??????###??? | | ???????????????????????????????????? | | ???????????????????????????????????? | | | | | +----------------------------------------------------+ Best States ------------- Heat Dissipation 25 Energy Generation 10 Energy Capacity 250 Matter Stores 300 Matter Capacity 300 Sight Range 16 Robot Scan Range 10 Terrain Scan Density 10 Evasion (%) 40 Item Schematics ----------------- None Robot Schematics ------------------ None Fabricated ------------ Nothing Alien Tech Used ----------------- None Achievements -------------- None Challenges ------------ None Game ------ Seed PowerGlidesysPurifier Manual? 0 Play Time 00:17:33 Cumulative 62.7 hours Start 2021.12.07 @ 15:13:28 End 2021.12.07 @ 15:31:12 Sessions 1 Manual Loads 0 Difficulty Rogue Special Mode None Game No. 78 Rogue 78 Adventurer 0 Explorer 0 Win Type - Total 0 Types 0/0/0/0/0/0/0/0/0 Lore% 36 Gallery% 35 Achievement% 23 Wizard Run 0 Options --------- ASCII 0 Keyboard 1 Movement Vi Keybinds 0 Fullscreen 0 Font 20/SmallcapsGlow Map View 76x50 Tactical HUD 1 Map Filters NONE Filters NONE Steam 1 RUN: f7ec2e31-1fa0-45ca-9ef8-ab8c3eba0c3c